[Event "WYCC 2018 G18"]
[Site "Halkidiki"]
[Date "2018.10.27"]
[Round "8"]
[White "Kieu, Bich Thuy"]
[Black "Rozman, Monika"]
[Result "1-0"]
[ECO "A85"]
[WhiteElo "1913"]
[BlackElo "2141"]
[Annotator "NA"]
[PlyCount "123"]
[EventDate "2018.10.20"]
[EventType "swiss"]
[EventCountry "GRE"]
[SourceTitle "playchess.com"]
[Source "ChessBase"]
[SourceQuality "1"]
[TimeControl "40/5400+30:1800+30"]

1. d4 {[%emt 0:00:00]} f5 {[%emt 0:00:00]} 2. c4 {[%emt 0:02:01]} Nf6 {[%emt 0:00:00]} 3. Nc3 {[%emt 0:00:05]} g6 {[%emt 0:00:00]} 4. Nf3 {[%emt 0:00:29]} Bg7 {[%emt 0:00:13]} 5. Bf4 {[%emt 0:01:45]} O-O {[%emt 0:00:50]} 6. e3 {[%emt 0:06:41]} d6 $11 {[%emt 0:01:07] LiveBook: 100 Games} 7. Be2 {[%emt 0:00:32]} Nc6 {[%emt 0:01:21]} 8. h4 {[%emt 0:06:28]} Bd7 {[%emt 0:04:36]} 9. Nd5 {[%emt 0:10:14]} e6 {[%emt 0:07:55]} 10. Nxf6+ {[%emt 0:01:06]} Bxf6 {[%emt 0:00:13]} 11. Bg5 {[%emt 0:03:19]} Qe7 {[%emt 0:06:14]} 12. Bxf6 {[%emt 0:09:38]} Qxf6 {[%emt 0:01:11]} 13. Qb3 {[%emt 0:01:21]} Rab8 {[%emt 0:15:14]} 14. c5 {[%emt 0:10:00]} Kh8 {[%emt 0:02:38]} 15. Rd1 {[%emt 0:06:14]} dxc5 {[%emt 0:21:31]} 16. dxc5 {[%emt 0:00:35]} Be8 {[%emt 0:00:24]} 17. Ng5 {[%emt 0:09:07]} e5 {[%emt 0:07:50]} 18. Qe6 {[%emt 0:05:23]} e4 {[%emt 0:12:52]} 19. Qxf6+ {[%emt 0:10:14]} Rxf6 {[%emt 0:00:06]} 20. f3 {[%emt 0:00:07]} exf3 {[%emt 0:05:37]} 21. gxf3 {[%emt 0:00:17]} h6 {[%emt 0:00:09]} 22. f4 {[%emt 0:04:21]} Ne7 {[%emt 0:05:00]} 23. Rh3 {[%emt 0:02:59]} Bc6 {[%emt 0:00:33]} 24. Bc4 {[%emt 0:00:25]} Rc8 {[%emt 0:05:30]} 25. Nf7+ {[%emt 0:01:35]} Kg7 {[%emt 0:00:05]} 26. Ne5 {[%emt 0:00:03]} Re8 {[%emt 0:01:43]} 27. Rg3 {[%emt 0:00:39]} h5 {[%emt 0:00:27]} 28. Kf2 {[%emt 0:01:48]} Rff8 {[%emt 0:01:00]} 29. Rg5 {[%emt 0:03:08]} Rd8 {[%emt 0:00:12]} 30. Rgg1 {[%emt 0:00:55]} a6 {[%emt 0:00:47]} 31. Bb3 {[%emt 0:01:52]} Kf6 {[%emt 0:00:04]} 32. Nf3 {[%emt 0:01:51]} Bd5 {[%emt 0:00:36]} 33. Bxd5 {[%emt 0:00:22]} Rxd5 {[%emt 0:00:09]} 34. Ne5 {[%emt 0:00:30]} Rfd8 {[%emt 0:00:10]} 35. Ke2 {[%emt 0:00:42]} c6 {[%emt 0:00:39]} 36. Nc4 {[%emt 0:00:30]} Rxd1 {[%emt 0:00:50]} 37. Rxd1 {[%emt 0:00:01]} Nd5 {[%emt 0:00:06]} 38. Na5 {[%emt 0:00:24]} Re8 {[%emt 0:00:09]} 39. Kf2 {[%emt 0:01:04]} Re7 {[%emt 0:00:08]} 40. Rd3 {[%emt 0:00:00]} Kg7 {[%emt 0:00:00]} 41. Rb3 {[%emt 0:01:44]} Kf8 {[%emt 0:05:34]} 42. Kf3 {[%emt 0:05:02]} Re4 {[%emt 0:04:26]} 43. a3 {[%emt 0:03:24]} Ra4 {[%emt 0:07:20]} 44. Nxb7 {[%emt 0:00:24]} Rc4 {[%emt 0:00:04]} 45. Nd8 {[%emt 0:02:07]} Nf6 {[%emt 0:06:18]} 46. Nxc6 {[%emt 0:09:38]} Ne4 {[%emt 0:02:42]} 47. Rb8+ {[%emt 0:00:12]} Kg7 {[%emt 0:00:07]} 48. Nd4 {[%emt 0:00:12]} Rc1 {[%emt 0:02:34]} 49. c6 {[%emt 0:02:09]} Rh1 {[%emt 0:00:13]} 50. Kg2 {[%emt 0:00:19]} Rc1 {[%emt 0:00:49]} 51. c7 {[%emt 0:00:25]} Nd6 {[%emt 0:00:41]} 52. Rd8 {[%emt 0:00:21]} Kf7 {[%emt 0:00:44]} 53. Rxd6 {[%emt 0:00:20]} Rxc7 {[%emt 0:00:04]} 54. Rxa6 {[%emt 0:00:06]} Re7 {[%emt 0:00:20]} 55. Kf2 {[%emt 0:00:11]} g5 {[%emt 0:00:29]} 56. fxg5 {[%emt 0:00:38]} Re4 {[%emt 0:00:11]} 57. Nxf5 {[%emt 0:00:17]} Kg8 {[%emt 0:00:33]} 58. g6 {[%emt 0:00:25]} Re8 {[%emt 0:00:14]} 59. Ra7 {[%emt 0:00:37]} Rf8 {[%emt 0:01:12]} 60. e4 {[%emt 0:00:17]} Rb8 {[%emt 0:00:25]} 61. Nh6+ {[%emt 0:00:22]} Kf8 {[%emt 0:00:06]} 62. g7+ {[%emt 0:00:04]} 1-0

[Event "WYCC 2018 G18"]
[Site "Halkidiki"]
[Date "2018.10.27"]
[Round "8"]
[White "Tsivelekidou, Evgenia"]
[Black "Nistor, Valentina"]
[Result "1-0"]
[ECO "D30"]
[WhiteElo "1891"]
[BlackElo "1881"]
[Annotator "NA"]
[PlyCount "73"]
[EventDate "2018.10.20"]
[EventType "swiss"]
[EventCountry "GRE"]
[SourceTitle "playchess.com"]
[Source "ChessBase"]
[SourceQuality "1"]
[TimeControl "40/5400+30:1800+30"]

1. d4 {[%emt 0:00:00]} d5 {[%emt 0:00:02]} 2. c4 {[%emt 0:00:00]} e6 {[%emt 0:00:04]} 3. Nf3 {[%emt 0:00:00]} Nf6 {[%emt 0:00:15]} 4. g3 {[%emt 0:00:00]} a6 {[%emt 0:01:14]} 5. Qc2 Bd6 {[%emt 0:05:22]} 6. Bg2 {[%emt 0:02:44]} O-O {[%emt 0:01:06]} 7. O-O {[%emt 0:00:07]} c6 {[%emt 0:01:39]} 8. Nbd2 {[%emt 0:01:08]} Nbd7 {[%emt 0:00:50]} 9. e4 {[%emt 0:03:25]} dxe4 {[%emt 0:05:08]} 10. Nxe4 {[%emt 0:00:08]} Nxe4 {[%emt 0:00:12]} 11. Qxe4 {[%emt 0:00:04]} Nf6 {[%emt 0:01:05]} 12. Qe2 {[%emt 0:00:50]} c5 {[%emt 0:06:03]} 13. Rd1 {[%emt 0:05:35]} Qe7 {[%emt 0:09:02]} 14. dxc5 {[%emt 0:04:03]} Bxc5 {[%emt 0:00:11]} 15. Ne5 {[%emt 0:01:29]} h6 {[%emt 0:10:34]} 16. Bf4 {[%emt 0:03:43]} g5 {[%emt 0:05:52]} 17. Bd2 {[%emt 0:07:06]} Rb8 {[%emt 0:05:57]} 18. Bc3 {[%emt 0:02:24]} Bb4 {[%emt 0:07:31]} 19. Bxb4 {[%emt 0:05:41]} Qxb4 {[%emt 0:00:03]} 20. a3 {[%emt 0:03:28]} Qe7 {[%emt 0:04:28]} 21. b4 {[%emt 0:03:48]} Nd7 {[%emt 0:03:54]} 22. c5 {[%emt 0:04:16]} Nxe5 {[%emt 0:02:20]} 23. Qxe5 {[%emt 0:00:40]} Bd7 {[%emt 0:01:27]} 24. Qc7 {[%emt 0:02:48]} Rfd8 {[%emt 0:01:53]} 25. Bxb7 {[%emt 0:10:42]} Qf6 {[%emt 0:04:36]} 26. c6 {[%emt 0:09:40]} Be8 {[%emt 0:10:17]} 27. Qb6 {[%emt 0:08:46]} Bxc6 {[%emt 0:04:50]} 28. Qxc6 {[%emt 0:01:24]} Rd2 {[%emt 0:00:36]} 29. Qf3 {[%emt 0:02:11]} Qb2 {[%emt 0:01:10]} 30. Rxd2 {[%emt 0:01:45]} Qxa1+ {[%emt 0:00:34]} 31. Rd1 {[%emt 0:00:48]} Qe5 {[%emt 0:00:28]} 32. Bxa6 {[%emt 0:00:42]} Rb6 {[%emt 0:02:01]} 33. Bf1 {[%emt 0:01:56]} Rb8 {[%emt 0:00:54]} 34. b5 {[%emt 0:00:40]} Rc8 {[%emt 0:00:25]} 35. b6 {[%emt 0:03:32]} Rc3 {[%emt 0:00:14]} 36. Qa8+ {[%emt 0:01:32]} Kg7 {[%emt 0:00:05]} 37. Qa4 {[%emt 0:01:30]} 1-0

[Event "WYCC 2018 G18"]
[Site "Halkidiki"]
[Date "2018.10.27"]
[Round "8"]
[White "Dong, Khanh Linh"]
[Black "Limanovska, Elizabete"]
[Result "1/2-1/2"]
[ECO "E18"]
[WhiteElo "1879"]
[BlackElo "2072"]
[Annotator "NA"]
[PlyCount "90"]
[EventDate "2018.10.20"]
[EventType "swiss"]
[EventCountry "GRE"]
[SourceTitle "playchess.com"]
[Source "ChessBase"]
[SourceQuality "1"]
[TimeControl "40/5400+30:1800+30"]

1. d4 {[%emt 0:00:00]} Nf6 {[%emt 0:00:00]} 2. Nf3 {[%emt 0:00:00]} e6 {[%emt 0:00:00]} 3. g3 {[%emt 0:00:00]} b6 {[%emt 0:00:00]} 4. Bg2 {[%emt 0:00:06]} Bb7 {[%emt 0:00:00]} 5. O-O {[%emt 0:00:08]} Be7 {[%emt 0:00:14]} 6. c4 {[%emt 0:00:35]} O-O {[%emt 0:00:15]} 7. Nc3 {[%emt 0:00:39]} Ne4 {[%emt 0:01:39]} 8. Nxe4 {[%emt 0:01:23]} Bxe4 {[%emt 0:00:19]} 9. Ne1 {[%emt 0:00:31]} Bxg2 10. Nxg2 f5 {[%emt 0:17:08]} 11. d5 {[%emt 0:04:47]} Bf6 {[%emt 0:05:37]} 12. Rb1 {[%emt 0:08:56]} Qe7 {[%emt 0:05:54]} 13. a3 {[%emt 0:08:56]} e5 {[%emt 0:06:53]} 14. e4 {[%emt 0:04:34]} fxe4 {[%emt 0:02:57]} 15. Re1 {[%emt 0:09:19]} d6 {[%emt 0:01:48]} 16. h4 {[%emt 0:07:05]} Nd7 {[%emt 0:00:52]} 17. b4 {[%emt 0:00:54]} a5 {[%emt 0:01:01]} 18. Rxe4 {[%emt 0:03:41]} axb4 {[%emt 0:01:31]} 19. axb4 {[%emt 0:00:09]} Qf7 {[%emt 0:10:23]} 20. Qe2 {[%emt 0:11:14]} b5 {[%emt 0:03:30]} 21. h5 {[%emt 0:09:51]} bxc4 {[%emt 0:02:43]} 22. Ne3 {[%emt 0:11:00]} Nb6 {[%emt 0:01:10]} 23. Rg4 {[%emt 0:02:57]} Bd8 {[%emt 0:05:18]} 24. Nxc4 {[%emt 0:05:01]} Qxd5 {[%emt 0:07:35]} 25. Bh6 {[%emt 0:03:50]} Rf7 {[%emt 0:00:06]} 26. Nxb6 {[%emt 0:02:09]} cxb6 {[%emt 0:02:23]} 27. Rd1 {[%emt 0:00:13]} Qe6 {[%emt 0:00:58]} 28. Be3 {[%emt 0:00:23]} Bc7 {[%emt 0:06:39]} 29. h6 {[%emt 0:01:26]} g6 {[%emt 0:00:21]} 30. Rc4 {[%emt 0:00:23]} d5 {[%emt 0:00:30]} 31. Rc2 {[%emt 0:00:15]} Re8 {[%emt 0:04:20]} 32. Rdc1 {[%emt 0:00:41]} Bd6 {[%emt 0:00:42]} 33. Bxb6 {[%emt 0:01:27]} Bxb4 {[%emt 0:00:46]} 34. Rc6 {[%emt 0:00:07]} Qf5 {[%emt 0:03:50]} 35. Qb5 {[%emt 0:00:22]} d4 {[%emt 0:00:59]} 36. Rf1 {[%emt 0:00:38]} Bf8 {[%emt 0:02:13]} 37. Rc7 {[%emt 0:02:47]} Ree7 {[%emt 0:01:45]} 38. Rxe7 {[%emt 0:00:18]} Rxe7 {[%emt 0:01:59]} 39. Bc5 {[%emt 0:00:27]} Rf7 {[%emt 0:00:33]} 40. Qe8 {[%emt 0:00:00]} Qg5 {[%emt 0:00:00]} 41. Bxf8 {[%emt 0:13:11]} Rxf8 {[%emt 0:06:55]} 42. Qe6+ {[%emt 0:00:13]} Kh8 {[%emt 0:01:09]} 43. Re1 {[%emt 0:00:45]} Qxh6 {[%emt 0:00:52]} 44. Rxe5 {[%emt 0:01:36]} Qg7 {[%emt 0:02:28]} 45. Rd5 {[%emt 0:00:44]} Qf6 {[%emt 0:00:24]} 1/2-1/2

[Event "WYCC 2018 G18"]
[Site "Halkidiki"]
[Date "2018.10.27"]
[Round "8"]
[White "Nemcova, Kamila"]
[Black "Golsta, Madara"]
[Result "0-1"]
[ECO "B70"]
[WhiteElo "1879"]
[BlackElo "1938"]
[Annotator "NA"]
[PlyCount "68"]
[EventDate "2018.10.20"]
[EventType "swiss"]
[EventCountry "GRE"]
[SourceTitle "playchess.com"]
[Source "ChessBase"]
[SourceQuality "1"]
[TimeControl "40/5400+30:1800+30"]

1. e4 {[%emt 0:00:00]} c5 {[%emt 0:00:00]} 2. Nf3 {[%emt 0:00:00]} d6 {[%emt 0:00:23]} 3. d4 {[%emt 0:00:00]} cxd4 {[%emt 0:00:15]} 4. Nxd4 {[%emt 0:00:00]} Nf6 {[%emt 0:00:36]} 5. Nc3 {[%emt 0:00:05]} g6 {[%emt 0:00:58]} 6. g3 {[%emt 0:00:26]} Nc6 {[%emt 0:00:25]} 7. Nde2 Bg7 {[%emt 0:04:34]} 8. Bg2 {[%emt 0:02:04]} h5 {[%emt 0:00:28]} 9. Bg5 {[%emt 0:13:35]} Bd7 {[%emt 0:04:09]} 10. a4 {[%emt 0:09:47]} Qc8 {[%emt 0:05:52]} 11. Nf4 {[%emt 0:30:15]} Ne5 {[%emt 0:03:56]} 12. Nfd5 {[%emt 0:05:52]} Nxd5 {[%emt 0:10:03]} 13. Nxd5 {[%emt 0:04:35]} f6 {[%emt 0:01:04]} 14. Bc1 {[%emt 0:01:24]} h4 {[%emt 0:09:32]} 15. Bf1 {[%emt 0:07:46]} Bc6 {[%emt 0:06:46]} 16. Bb5 {[%emt 0:01:54]} e6 {[%emt 0:01:43]} 17. Nc3 {[%emt 0:03:44]} a6 {[%emt 0:04:47]} 18. Bxc6+ {[%emt 0:01:44]} Qxc6 {[%emt 0:00:54]} 19. f4 {[%emt 0:01:03]} Nc4 {[%emt 0:02:02]} 20. Qd3 {[%emt 0:04:44]} f5 {[%emt 0:02:33]} 21. O-O {[%emt 0:02:34]} hxg3 {[%emt 0:02:55]} 22. Qxg3 {[%emt 0:00:48]} Bd4+ {[%emt 0:00:17]} 23. Kg2 {[%emt 0:02:12]} Bxc3 {[%emt 0:01:09]} 24. Qxc3 {[%emt 0:02:03]} Qxe4+ {[%emt 0:00:10]} 25. Qf3 {[%emt 0:03:34]} Qxc2+ {[%emt 0:01:06]} 26. Rf2 {[%emt 0:00:49]} Qe4 {[%emt 0:00:06]} 27. Qxe4 {[%emt 0:00:58]} fxe4 {[%emt 0:00:07]} 28. b3 {[%emt 0:00:59]} Na5 {[%emt 0:00:12]} 29. Bb2 {[%emt 0:00:19]} Rh5 {[%emt 0:00:44]} 30. b4 {[%emt 0:00:33]} Nc4 {[%emt 0:00:20]} 31. Rc1 {[%emt 0:00:44]} b5 {[%emt 0:00:52]} 32. axb5 {[%emt 0:00:37]} axb5 {[%emt 0:00:16]} 33. Bf6 {[%emt 0:00:19]} Ne3+ {[%emt 0:00:43]} 34. Kg3 {[%emt 0:00:32]} Ra3 {[%emt 0:00:50]} 0-1

[Event "WYCC 2018 G18"]
[Site "Halkidiki"]
[Date "2018.10.27"]
[Round "8"]
[White "Salimova, Asal"]
[Black "Egyed, Judit"]
[Result "0-1"]
[ECO "B07"]
[WhiteElo "1870"]
[BlackElo "2089"]
[Annotator "NA"]
[PlyCount "62"]
[EventDate "2018.10.20"]
[EventType "swiss"]
[EventCountry "GRE"]
[SourceTitle "playchess.com"]
[Source "ChessBase"]
[SourceQuality "1"]
[TimeControl "40/5400+30:1800+30"]

1. d4 {[%emt 0:00:00]} Nf6 {[%emt 0:00:00]} 2. Nc3 {[%emt 0:00:00]} g6 {[%emt 0:00:00]} 3. e4 {[%emt 0:00:00]} d6 {[%emt 0:00:00]} 4. f3 {[%emt 0:00:00]} Bg7 {[%emt 0:00:04]} 5. Be3 {[%emt 0:00:01]} c6 {[%emt 0:01:06]} 6. Qd2 {[%emt 0:00:22]} O-O {[%emt 0:02:27]} 7. h4 {[%emt 0:01:04]} h5 8. Bh6 {[%emt 0:11:08]} e5 {[%emt 0:04:32]} 9. O-O-O {[%emt 0:02:55]} Nbd7 {[%emt 0:06:08]} 10. Nh3 {[%emt 0:10:40]} b5 {[%emt 0:02:29]} 11. Nf2 {[%emt 0:09:20]} Qa5 {[%emt 0:04:36]} 12. Kb1 {[%emt 0:07:50]} b4 {[%emt 0:06:12]} 13. Ne2 {[%emt 0:01:40]} Nb6 {[%emt 0:05:12]} 14. Bxg7 {[%emt 0:01:40]} Kxg7 {[%emt 0:00:11]} 15. Nc1 {[%emt 0:00:25]} Be6 {[%emt 0:04:43]} 16. Nb3 {[%emt 0:19:13]} Qa4 {[%emt 0:12:08]} 17. dxe5 {[%emt 0:01:46]} dxe5 {[%emt 0:00:08]} 18. Nd3 {[%emt 0:00:14]} Rad8 {[%emt 0:01:46]} 19. Qc1 {[%emt 0:04:27]} Nbd7 {[%emt 0:03:13]} 20. c4 {[%emt 0:06:46]} bxc3 {[%emt 0:03:20]} 21. Qxc3 {[%emt 0:00:07]} c5 {[%emt 0:19:48]} 22. Rc1 {[%emt 0:02:52]} Rb8 {[%emt 0:02:17]} 23. Ndxc5 {[%emt 0:06:02]} Nxc5 {[%emt 0:00:39]} 24. Qxc5 {[%emt 0:00:36]} Rfc8 {[%emt 0:01:11]} 25. Qxe5 {[%emt 0:03:44]} Bxb3 {[%emt 0:01:53]} 26. axb3 {[%emt 0:00:06]} Rxc1+ {[%emt 0:00:04]} 27. Kxc1 {[%emt 0:00:10]} Qa1+ {[%emt 0:02:10]} 28. Kc2 {[%emt 0:03:43]} Rc8+ {[%emt 0:00:16]} 29. Kd3 {[%emt 0:01:07]} Qc1 {[%emt 0:05:24]} 30. Qg5 {[%emt 0:04:52]} Rd8+ {[%emt 0:00:23]} 31. Ke2 {[%emt 0:00:18]} Qc2+ {[%emt 0:00:05]} 0-1

[Event "WYCC 2018 G18"]
[Site "Halkidiki"]
[Date "2018.10.27"]
[Round "8"]
[White "Nguyen, Hong Ngoc"]
[Black "Hamedi Nia, Vesal"]
[Result "1/2-1/2"]
[ECO "D30"]
[WhiteElo "1861"]
[BlackElo "1987"]
[Annotator "NA"]
[PlyCount "157"]
[EventDate "2018.10.20"]
[EventType "swiss"]
[EventCountry "GRE"]
[SourceTitle "playchess.com"]
[Source "ChessBase"]
[SourceQuality "1"]
[TimeControl "40/5400+30:1800+30"]

1. d4 {[%emt 0:00:00]} d5 {[%emt 0:00:00]} 2. c4 {[%emt 0:00:00]} e6 {[%emt 0:00:00]} 3. Nf3 {[%emt 0:00:00]} Nf6 {[%emt 0:00:00]} 4. g3 {[%emt 0:00:05]} Bb4+ {[%emt 0:00:10]} 5. Bd2 {[%emt 0:00:10]} Be7 {[%emt 0:00:05]} 6. Bg2 {[%emt 0:00:16]} O-O {[%emt 0:00:05]} 7. O-O {[%emt 0:00:17]} Nbd7 {[%emt 0:00:30]} 8. Qc2 {[%emt 0:01:22]} c6 {[%emt 0:00:09]} 9. b3 {[%emt 0:03:45]} b6 10. Nc3 {[%emt 0:02:04]} Ba6 $11 {[%emt 0:05:27] LiveBook: 22 Games} 11. cxd5 {[%emt 0:02:10]} cxd5 {[%emt 0:00:51]} 12. Qb2 {[%emt 0:01:38]} Rc8 {[%emt 0:03:50]} 13. a4 {[%emt 0:03:06]} Ne4 {[%emt 0:21:15]} 14. Rfc1 {[%emt 0:02:23]} Nd6 {[%emt 0:11:51]} 15. Rc2 {[%emt 0:05:26]} Re8 {[%emt 0:22:16]} 16. Bf1 {[%emt 0:02:19]} Qc7 {[%emt 0:03:54]} 17. Rac1 {[%emt 0:02:06]} Qb7 {[%emt 0:00:47]} 18. Ne5 {[%emt 0:03:36]} f6 {[%emt 0:05:10]} 19. Nxd7 {[%emt 0:00:36]} Qxd7 {[%emt 0:00:03]} 20. Bh3 {[%emt 0:01:51]} Nf5 {[%emt 0:03:27]} 21. Na2 {[%emt 0:07:35]} Rxc2 {[%emt 0:03:09]} 22. Rxc2 {[%emt 0:00:06]} Bd6 {[%emt 0:02:16]} 23. e3 {[%emt 0:01:46]} Rc8 {[%emt 0:03:19]} 24. Nb4 {[%emt 0:01:58]} Bb7 {[%emt 0:03:47]} 25. Qc1 {[%emt 0:00:56]} a5 {[%emt 0:01:14]} 26. Nd3 {[%emt 0:03:57]} Kf7 {[%emt 0:02:32]} 27. b4 {[%emt 0:04:13]} axb4 {[%emt 0:01:05]} 28. Bxb4 {[%emt 0:01:17]} Rxc2 {[%emt 0:01:34]} 29. Qxc2 {[%emt 0:00:06]} Bc6 {[%emt 0:03:41]} 30. a5 {[%emt 0:08:16]} Bxb4 {[%emt 0:01:03]} 31. Nxb4 {[%emt 0:00:06]} Ba4 {[%emt 0:00:06]} 32. Qa2 {[%emt 0:01:49]} bxa5 {[%emt 0:00:08]} 33. Nd3 {[%emt 0:00:10]} Bb5 {[%emt 0:02:04]} 34. Nc5 {[%emt 0:00:09]} Qc7 {[%emt 0:00:35]} 35. Bxf5 {[%emt 0:01:03]} exf5 {[%emt 0:00:03]} 36. Qxd5+ {[%emt 0:00:08]} Kg6 {[%emt 0:00:03]} 37. e4 {[%emt 0:06:13]} fxe4 {[%emt 0:00:52]} 38. h4 {[%emt 0:01:57]} Bc6 {[%emt 0:01:03]} 39. Qe6 {[%emt 0:01:46]} h5 {[%emt 0:00:29]} 40. d5 {[%emt 0:00:00]} Bb5 {[%emt 0:00:00]} 41. Qxe4+ {[%emt 0:00:56]} Kf7 {[%emt 0:02:59]} 42. Qe6+ {[%emt 0:02:43]} Kg6 {[%emt 0:00:34]} 43. Qe4+ {[%emt 0:01:54]} Kf7 {[%emt 0:00:09]} 44. Ne6 {[%emt 0:10:41]} Qe5 {[%emt 0:06:08]} 45. Qf3 {[%emt 0:00:18]} Qe2 {[%emt 0:04:47]} 46. Qf4 {[%emt 0:00:54]} Qd1+ {[%emt 0:01:14]} 47. Kh2 {[%emt 0:00:16]} Qxd5 {[%emt 0:00:28]} 48. Nc7 {[%emt 0:05:07]} Qc5 {[%emt 0:00:30]} 49. Nxb5 {[%emt 0:00:16]} Qxb5 {[%emt 0:00:03]} 50. Qc7+ {[%emt 0:00:25]} Kg6 {[%emt 0:00:13]} 51. Qc2+ {[%emt 0:00:08]} Qf5 {[%emt 0:00:19]} 52. Qa2 {[%emt 0:00:11]} Qc5 {[%emt 0:01:34]} 53. Kg1 {[%emt 0:00:47]} Qc1+ {[%emt 0:00:56]} 54. Kh2 {[%emt 0:00:07]} Qc3 {[%emt 0:00:26]} 55. Qe6 {[%emt 0:02:27]} Qe5 {[%emt 0:02:34]} 56. Qa2 {[%emt 0:00:14]} Qe1 {[%emt 0:03:26]} 57. Qc2+ {[%emt 0:00:43]} Kh6 {[%emt 0:00:17]} 58. Kg2 {[%emt 0:00:21]} Qe5 {[%emt 0:03:55]} 59. Qd2+ {[%emt 0:00:54]} Kg6 {[%emt 0:00:02]} 60. Kh2 {[%emt 0:00:39]} Qf5 {[%emt 0:02:41]} 61. Qa2 {[%emt 0:00:12]} a4 {[%emt 0:01:49]} 62. Qxa4 {[%emt 0:00:25]} Qxf2+ {[%emt 0:00:05]} 63. Kh3 {[%emt 0:00:07]} Qf1+ {[%emt 0:00:49]} 64. Kh2 {[%emt 0:00:08]} Qe2+ {[%emt 0:00:41]} 65. Kh3 {[%emt 0:00:14]} Kh7 {[%emt 0:04:00]} 66. Qd7 {[%emt 0:01:02]} Qf3 {[%emt 0:01:43]} 67. Kh2 {[%emt 0:00:32]} Qe2+ {[%emt 0:01:03]} 68. Kh3 {[%emt 0:00:08]} Qe4 {[%emt 0:00:04]} 69. Kh2 {[%emt 0:00:09]} Kg6 {[%emt 0:00:41]} 70. Qd2 {[%emt 0:00:18]} Qf5 {[%emt 0:01:15]} 71. Qe2 {[%emt 0:00:14]} Kh6 {[%emt 0:00:20]} 72. Qd2+ {[%emt 0:00:46]} g5 {[%emt 0:00:15]} 73. hxg5+ {[%emt 0:00:06]} Qxg5 {[%emt 0:00:29]} 74. Qd8 {[%emt 0:00:09]} Kg6 {[%emt 0:00:43]} 75. Qg8+ {[%emt 0:00:26]} Kf5 {[%emt 0:00:07]} 76. Qd5+ {[%emt 0:00:05]} Kg6 {[%emt 0:00:11]} 77. Qg8+ {[%emt 0:00:06]} Kh6 {[%emt 0:00:28]} 78. Qh8+ {[%emt 0:00:09]} Kg6 {[%emt 0:00:03]} 79. Qg8+ {[%emt 0:00:04] Kf7} 1/2-1/2

[Event "WYCC 2018 G18"]
[Site "Halkidiki"]
[Date "2018.10.27"]
[Round "8"]
[White "Miller, Rachel"]
[Black "Yurdakul, Didem Nuray"]
[Result "1-0"]
[ECO "B53"]
[WhiteElo "1859"]
[BlackElo "1604"]
[Annotator "NA"]
[PlyCount "101"]
[EventDate "2018.10.20"]
[EventType "swiss"]
[EventCountry "GRE"]
[SourceTitle "playchess.com"]
[Source "ChessBase"]
[SourceQuality "1"]
[TimeControl "40/5400+30:1800+30"]

1. e4 {[%emt 0:00:00]} c5 {[%emt 0:00:00]} 2. Nf3 {[%emt 0:00:00]} d6 {[%emt 0:00:00]} 3. d4 {[%emt 0:00:00]} cxd4 {[%emt 0:00:00]} 4. Qxd4 {[%emt 0:00:05]} a6 {[%emt 0:00:38]} 5. h3 {[%emt 0:00:26]} Nc6 {[%emt 0:02:09]} 6. Qe3 {[%emt 0:00:12]} g6 {[%emt 0:01:40]} 7. Be2 Bg7 8. O-O {[%emt 0:05:08]} Nf6 {[%emt 0:02:59]} 9. c4 {[%emt 0:00:23]} O-O {[%emt 0:00:44]} 10. Nc3 {[%emt 0:00:50]} e6 {[%emt 0:13:51]} 11. Rd1 {[%emt 0:03:23]} Qc7 {[%emt 0:00:37]} 12. Rb1 {[%emt 0:04:09]} Rd8 {[%emt 0:02:29]} 13. b3 {[%emt 0:03:28]} Nd7 {[%emt 0:10:04]} 14. Bb2 {[%emt 0:07:55]} Nde5 {[%emt 0:01:03]} 15. Rd2 {[%emt 0:14:12]} b6 {[%emt 0:11:37]} 16. Rbd1 {[%emt 0:01:33]} Rb8 {[%emt 0:09:58]} 17. Nh2 {[%emt 0:11:22]} Na5 {[%emt 0:04:33]} 18. Ng4 {[%emt 0:17:29]} Nxg4 {[%emt 0:06:58]} 19. hxg4 {[%emt 0:00:17]} Bb7 {[%emt 0:00:27]} 20. g5 {[%emt 0:06:51]} Rd7 {[%emt 0:07:42]} 21. Na4 {[%emt 0:07:41]} Bxb2 {[%emt 0:03:24]} 22. Rxb2 {[%emt 0:02:27]} Bc6 {[%emt 0:00:17]} 23. Nc3 {[%emt 0:00:10]} b5 {[%emt 0:02:56]} 24. Rc2 {[%emt 0:06:40]} Qb7 {[%emt 0:03:03]} 25. Nd5 {[%emt 0:01:25]} exd5 {[%emt 0:05:11]} 26. exd5 {[%emt 0:00:04]} Re7 {[%emt 0:00:05]} 27. dxc6 {[%emt 0:00:04]} Nxc6 {[%emt 0:00:09]} 28. Qd2 {[%emt 0:00:45]} b4 {[%emt 0:03:58]} 29. Bf3 {[%emt 0:00:17]} Re5 {[%emt 0:01:39]} 30. Qxd6 {[%emt 0:01:19]} Re6 {[%emt 0:00:47]} 31. Qf4 {[%emt 0:00:51]} Rbe8 {[%emt 0:01:32]} 32. Rcd2 {[%emt 0:00:13]} Qc8 {[%emt 0:00:46]} 33. Bg4 {[%emt 0:03:16]} Re1+ {[%emt 0:01:14]} 34. Rxe1 {[%emt 0:00:05]} Rxe1+ {[%emt 0:00:02]} 35. Kh2 {[%emt 0:00:06]} Qf8 {[%emt 0:02:18]} 36. Qc7 {[%emt 0:01:11]} h5 {[%emt 0:02:06]} 37. Bxh5 {[%emt 0:01:42]} gxh5 {[%emt 0:00:53]} 38. Qxc6 {[%emt 0:00:06]} Qe7 {[%emt 0:00:26]} 39. Qf6 {[%emt 0:02:02]} Rh1+ {[%emt 0:00:33]} 40. Kxh1 {[%emt 0:00:00]} Qe1+ {[%emt 0:00:00]} 41. Kh2 {[%emt 0:00:25]} Qxd2 {[%emt 0:00:23]} 42. g6 {[%emt 0:14:52]} fxg6 {[%emt 0:02:16]} 43. Qxg6+ {[%emt 0:00:09]} Kf8 {[%emt 0:00:19]} 44. Qf5+ {[%emt 0:06:06]} Kg7 {[%emt 0:01:55]} 45. c5 {[%emt 0:00:23]} Qd4 {[%emt 0:08:08]} 46. Qxh5 {[%emt 0:02:09]} Qf4+ {[%emt 0:02:14]} 47. Kh3 {[%emt 0:00:06]} Qc1 {[%emt 0:00:19]} 48. Qe5+ {[%emt 0:01:16]} Kf7 {[%emt 0:00:34]} 49. Qd5+ {[%emt 0:01:50]} Kf8 {[%emt 0:02:18]} 50. g3 {[%emt 0:00:42]} Qe1 {[%emt 0:03:01]} 51. Kg2 1-0

[Event "WYCC 2018 G18"]
[Site "Halkidiki"]
[Date "2018.10.27"]
[Round "8"]
[White "Jie, Tianhui"]
[Black "Ramirez Toledo, Ayleen Maribel"]
[Result "1-0"]
[ECO "E91"]
[WhiteElo "1849"]
[BlackElo "1545"]
[Annotator "NA"]
[PlyCount "85"]
[EventDate "2018.10.20"]
[EventType "swiss"]
[EventCountry "GRE"]
[SourceTitle "playchess.com"]
[Source "ChessBase"]
[SourceQuality "1"]
[TimeControl "40/5400+30:1800+30"]

1. d4 Nf6 2. c4 g6 3. Nc3 Bg7 4. e4 d6 5. Nf3 O-O 6. Be2 Nbd7 7. Be3 e5 8. d5 a5 9. a3 Nc5 10. Nd2 Ne8 11. b4 axb4 12. axb4 Rxa1 13. Qxa1 Nd7 14. O-O f5 15. f3 f4 16. Bf2 g5 17. c5 Ndf6 18. Nc4 h5 19. cxd6 cxd6 20. Nb6 g4 21. Nxc8 Qxc8 22. Rc1 Nh7 23. Nb5 Qd7 24. Qc3 Bf6 25. Qc8 Qxc8 26. Rxc8 Ng5 27. fxg4 Nxe4 28. gxh5 Be7 29. Bg4 N8f6 30. Be6+ Kg7 31. Rc7 Re8 32. Rxb7 Kf8 33. Nc7 Rd8 34. Bf5 Kg8 35. Ba7 Bf8 36. b5 Ng5 37. Ne6 Nxe6 38. Bxe6+ Kh8 39. Rf7 Ne4 40. b6 Nc5 41. b7 Nxb7 42. Rxb7 e4 43. Bd4+ 1-0